[Event "Torneo Nuevo Centro. Jornada 8"]
[Site "Chess.com"]
[Date "2020.08.07"]
[Round "5"]
[White "Castellano López, Javier"]
[Black "Roca Cruz, Rafael"]
[Result "1-0"]
[WhiteElo "1893"]
[BlackElo "1796"]
[TimeControl "180+2"]
[EndTime "11:24:48 PDT"]
[Termination "Victoria de its_xavi_official por tiempo"]

1. d4 {[%clk 0:03:01.9]} 1... b5 {[%clk 0:03:00.9]} 2. e4 {[%clk 0:03:01.7]}
2... Bb7 {[%clk 0:03:02.1]} 3. Bd3 {[%clk 0:03:00.1]} 3... Nf6 {[%clk 0:03:03]}
4. Qe2 {[%clk 0:02:55.7]} 4... e6 {[%clk 0:03:03.3]} 5. Bg5 {[%clk 0:02:55.2]}
5... Be7 {[%clk 0:03:02]} 6. c3 {[%clk 0:02:54.7]} 6... a6 {[%clk 0:03:02.8]} 7.
Nd2 {[%clk 0:02:54.9]} 7... O-O {[%clk 0:03:01.1]} 8. Ngf3 {[%clk 0:02:55.6]}
8... d6 {[%clk 0:03:02.2]} 9. O-O {[%clk 0:02:55.7]} 9... Nbd7 {[%clk
0:03:03.3]} 10. a4 {[%clk 0:02:51.6]} 10... bxa4 {[%clk 0:02:36.4]} 11. Rxa4
{[%clk 0:02:50.7]} 11... a5 {[%clk 0:02:37.5]} 12. Rfa1 {[%clk 0:02:48]} 12...
c5 {[%clk 0:02:38.2]} 13. Bxf6 {[%clk 0:02:27.4]} 13... Bxf6 {[%clk 0:02:34.4]}
14. Nc4 {[%clk 0:02:25.7]} 14... Nb6 {[%clk 0:02:30.3]} 15. Rxa5 {[%clk
0:02:10.6]} 15... Nxc4 {[%clk 0:02:28.4]} 16. Rxa8 {[%clk 0:02:11.3]} 16... Bxa8
{[%clk 0:02:28.6]} 17. Bxc4 {[%clk 0:02:11.2]} 17... cxd4 {[%clk 0:02:28.2]} 18.
cxd4 {[%clk 0:02:11.4]} 18... Qb6 {[%clk 0:02:29.3]} 19. e5 {[%clk 0:01:53.1]}
19... Bxf3 {[%clk 0:02:24.3]} 20. gxf3 {[%clk 0:01:47.4]} 20... dxe5 {[%clk
0:02:25.3]} 21. dxe5 {[%clk 0:01:48.2]} 21... Bh4 {[%clk 0:01:52]} 22. b3 {[%clk
0:01:34]} 22... Rd8 {[%clk 0:01:39.3]} 23. Qe3 {[%clk 0:01:23.3]} 23... Qxe3
{[%clk 0:00:25.8]} 24. fxe3 {[%clk 0:01:23.7]} 24... g6 {[%clk 0:00:24.6]} 25.
Ra2 {[%clk 0:01:21.6]} 25... Kg7 {[%clk 0:00:15.2]} 26. Kg2 {[%clk 0:01:21.4]}
26... Be7 {[%clk 0:00:10.8]} 27. f4 {[%clk 0:01:13.4]} 27... Bc5 {[%clk
0:00:10.7]} 28. Kf3 {[%clk 0:01:14]} 28... Rd1 {[%clk 0:00:10.6]} 29. Rb2 {[%clk
0:01:00.5]} 29... Bb4 {[%clk 0:00:10.4]} 30. Ra2 {[%clk 0:00:54.9]} 30... Rd8
{[%clk 0:00:06.6]} 31. Ra4 {[%clk 0:00:54.2]} 31... Rb8 {[%clk 0:00:07.7]} 32.
Ke2 {[%clk 0:00:49]} 32... h5 {[%clk 0:00:04.1]} 33. Bd3 {[%clk 0:00:38.8]}
33... h4 {[%clk 0:00:03.1]} 34. h3 {[%clk 0:00:38.4]} 34... Rb6 {[%clk
0:00:03.3]} 35. Bc4 {[%clk 0:00:35.3]} 35... Bc5 {[%clk 0:00:02.4]} 36. Kf3
{[%clk 0:00:34.7]} 1

[Event "Torneo Nuevo Centro. Jornada 8"]
[Site "Chess.com"]
[Date "2020.08.07"]
[Round "5"]
[White "Méndez Giménez , Néstor Emmanuel"]
[Black "Chofre Murcia, Adrián"]
[Result "0-1"]
[WhiteElo "1203"]
[BlackElo "1687"]
[TimeControl "180+2"]
[EndTime "11:26:02 PDT"]
[Termination "Victoria de Kelorian por jaque mate"]

1. e4 {[%clk 0:03:01.9]} 1... e5 {[%clk 0:03:00.7]} 2. Nf3 {[%clk 0:03:02.6]}
2... Nc6 {[%clk 0:03:01.9]} 3. d4 {[%clk 0:03:03.2]} 3... exd4 {[%clk
0:02:57.1]} 4. Nxd4 {[%clk 0:03:02.2]} 4... Nxd4 {[%clk 0:02:58]} 5. Qxd4 {[%clk
0:03:02.7]} 5... d6 {[%clk 0:02:55]} 6. b3 {[%clk 0:03:02.6]} 6... Nf6 {[%clk
0:02:53.2]} 7. Bb2 {[%clk 0:03:02.1]} 7... Be7 {[%clk 0:02:53]} 8. Bc4 {[%clk
0:02:59.8]} 8... O-O {[%clk 0:02:52.6]} 9. O-O {[%clk 0:02:57.1]} 9... Be6
{[%clk 0:02:52.8]} 10. Bxe6 {[%clk 0:02:56.3]} 10... fxe6 {[%clk 0:02:52.7]} 11.
Qc4 {[%clk 0:02:56.5]} 11... Qd7 {[%clk 0:02:52.4]} 12. Na3 {[%clk 0:02:51.7]}
12... c6 {[%clk 0:02:52.4]} 13. Rfd1 {[%clk 0:02:44.1]} 13... Kh8 {[%clk
0:02:51.9]} 14. e5 {[%clk 0:02:40.5]} 14... d5 {[%clk 0:02:52.9]} 15. Qe2 {[%clk
0:02:38.2]} 15... Ne4 {[%clk 0:02:45.8]} 16. Qxe4 {[%clk 0:02:38]} 16... Rf5
{[%clk 0:02:16.6]} 17. Qg4 {[%clk 0:02:27.9]} 17... Raf8 {[%clk 0:02:12.9]} 18.
Bd4 {[%clk 0:02:20.4]} 18... Bxa3 {[%clk 0:02:08.3]} 19. Rf1 {[%clk 0:02:06.3]}
19... Be7 {[%clk 0:02:03.7]} 20. h4 {[%clk 0:01:53]} 20... b6 {[%clk 0:01:58.8]}
21. Qg3 {[%clk 0:01:40.2]} 21... c5 {[%clk 0:01:47.7]} 22. Bc3 {[%clk
0:01:36.2]} 22... d4 {[%clk 0:01:47.6]} 23. Rad1 {[%clk 0:01:35.2]} 23... Qd5
{[%clk 0:01:41.4]} 24. Bb2 {[%clk 0:01:22.8]} 24... Qxe5 {[%clk 0:01:39.9]} 25.
Qxe5 {[%clk 0:01:17.9]} 25... Rxe5 {[%clk 0:01:40.6]} 26. Rfe1 {[%clk 0:01:15]}
26... Rxe1+ {[%clk 0:01:35.4]} 27. Rxe1 {[%clk 0:01:12.1]} 27... Bxh4 {[%clk
0:01:31.3]} 28. g3 {[%clk 0:01:09.6]} 28... Bf6 {[%clk 0:01:10.2]} 29. Rxe6
{[%clk 0:01:06.6]} 29... h6 {[%clk 0:01:09.9]} 30. Kg2 {[%clk 0:01:00]} 30...
Rf7 {[%clk 0:01:10]} 31. Re8+ {[%clk 0:00:56.6]} 31... Kh7 {[%clk 0:01:08.6]}
32. Re1 {[%clk 0:00:54.3]} 32... Re7 {[%clk 0:01:07.7]} 33. Rd1 {[%clk
0:00:48.7]} 33... Re2 {[%clk 0:01:07]} 34. Rc1 {[%clk 0:00:42]} 34... Bg5 {[%clk
0:01:04.7]} 35. Rd1 {[%clk 0:00:35.8]} 35... Rxc2 {[%clk 0:01:03.9]} 36. Bc1
{[%clk 0:00:36.1]} 36... Rxc1 {[%clk 0:01:00.6]} 37. Rxc1 {[%clk 0:00:35.2]}
37... Bxc1 {[%clk 0:01:00.7]} 38. Kf3 {[%clk 0:00:36.2]} 38... Bb2 {[%clk
0:01:01]} 39. Ke2 {[%clk 0:00:36.1]} 39... Kg6 {[%clk 0:00:59.9]} 40. f4 {[%clk
0:00:36.8]} 40... Kf5 {[%clk 0:01:00.6]} 41. Kf3 {[%clk 0:00:37.1]} 41... Bc3
{[%clk 0:00:59.6]} 42. g4+ {[%clk 0:00:37.7]} 42... Kf6 {[%clk 0:01:00.2]} 43.
Ke4 {[%clk 0:00:38.1]} 43... g5 {[%clk 0:00:54.8]} 44. f5 {[%clk 0:00:36.7]}
44... a6 {[%clk 0:00:51.3]} 45. a4 {[%clk 0:00:36.2]} 45... b5 {[%clk
0:00:52.1]} 46. axb5 {[%clk 0:00:36]} 46... axb5 {[%clk 0:00:51.5]} 47. Kd3
{[%clk 0:00:31.4]} 47... Ke5 {[%clk 0:00:49.6]} 48. Ke2 {[%clk 0:00:28.1]} 48...
Ke4 {[%clk 0:00:49.4]} 49. f6 {[%clk 0:00:28.6]} 49... d3+ {[%clk 0:00:46.4]}
50. Kd1 {[%clk 0:00:26.5]} 50... Bxf6 {[%clk 0:00:46.7]} 51. Kd2 {[%clk
0:00:26.5]} 51... b4 {[%clk 0:00:47.3]} 52. Kd1 {[%clk 0:00:26]} 52... Bc3
{[%clk 0:00:43.7]} 53. Kc1 {[%clk 0:00:26]} 53... Kf4 {[%clk 0:00:41.8]} 54. Kd1
{[%clk 0:00:25.4]} 54... Kxg4 {[%clk 0:00:42.7]} 55. Kc1 {[%clk 0:00:25.9]}
55... h5 {[%clk 0:00:43.2]} 56. Kd1 {[%clk 0:00:26.7]} 56... Kf4 {[%clk
0:00:43.5]} 57. Kc1 {[%clk 0:00:27.3]} 57... g4 {[%clk 0:00:44.1]} 58. Kd1
{[%clk 0:00:27.2]} 58... h4 {[%clk 0:00:45.2]} 59. Kc1 {[%clk 0:00:27.2]} 59...
h3 {[%clk 0:00:46.3]} 60. Kd1 {[%clk 0:00:28.6]} 60... h2 {[%clk 0:00:47.3]} 61.
Kc1 {[%clk 0:00:29.5]} 61... g3 {[%clk 0:00:48.2]} 62. Kb1 {[%clk 0:00:28.7]}
62... h1=R+ {[%clk 0:00:43.2]} 63. Ka2 {[%clk 0:00:28.9]} 63... Ra1# {[%clk
0:00:44]} 0

[Event "Torneo Nuevo Centro. Jornada 8"]
[Site "Chess.com"]
[Date "2020.08.07"]
[Round "5"]
[White "Gil López, Alejandro"]
[Black "Pedros Viudes, Santiago"]
[Result "1-0"]
[WhiteElo "2210"]
[BlackElo "1905"]
[TimeControl "180+2"]
[EndTime "11:26:10 PDT"]
[Termination "Victoria de AglVal0313 por abandono"]

1. e4 {[%clk 0:03:01.9]} 1... e6 {[%clk 0:03:00.9]} 2. Nf3 {[%clk 0:03:02.4]}
2... d5 {[%clk 0:03:02]} 3. exd5 {[%clk 0:03:04.3]} 3... exd5 {[%clk 0:03:03.2]}
4. d4 {[%clk 0:03:06.2]} 4... Bd6 {[%clk 0:03:04.4]} 5. Bd3 {[%clk 0:03:03.1]}
5... Nc6 {[%clk 0:03:04.8]} 6. O-O {[%clk 0:03:03.6]} 6... Bg4 {[%clk
0:03:05.6]} 7. c3 {[%clk 0:03:04.1]} 7... Nf6 {[%clk 0:03:05.3]} 8. Bg5 {[%clk
0:03:04.1]} 8... h6 {[%clk 0:03:03.6]} 9. Re1+ {[%clk 0:03:01.8]} 9... Ne7
{[%clk 0:03:04.6]} 10. Bxf6 {[%clk 0:02:59]} 10... gxf6 {[%clk 0:03:06.5]} 11.
Nbd2 {[%clk 0:02:58.1]} 11... Qd7 {[%clk 0:03:06.9]} 12. Qc2 {[%clk 0:02:48]}
12... O-O-O {[%clk 0:03:01]} 13. b4 {[%clk 0:02:49.4]} 13... Rhg8 {[%clk
0:02:47.7]} 14. g3 {[%clk 0:02:42.3]} 14... Kb8 {[%clk 0:02:31.9]} 15. Bf1
{[%clk 0:02:42]} 15... Ng6 {[%clk 0:02:10.4]} 16. a4 {[%clk 0:02:32.8]} 16... h5
{[%clk 0:02:10.7]} 17. a5 {[%clk 0:02:29.7]} 17... h4 {[%clk 0:01:48.5]} 18. Qa4
{[%clk 0:02:27.3]} 18... Qf5 {[%clk 0:01:32.5]} 19. a6 {[%clk 0:02:24.4]} 19...
b6 {[%clk 0:00:53]} 20. Qc6 {[%clk 0:02:23.3]} 20... Qc8 {[%clk 0:00:53.7]} 21.
c4 {[%clk 0:01:58.7]} 21... Bxb4 {[%clk 0:00:47]} 22. Reb1 {[%clk 0:01:49.2]}
22... Bd7 {[%clk 0:00:29.5]} 23. Qxf6 {[%clk 0:01:45.2]} 23... Bxd2 {[%clk
0:00:23]} 24. Nxd2 {[%clk 0:01:46.3]} 24... hxg3 {[%clk 0:00:24.9]} 25. hxg3
{[%clk 0:01:46.1]} 25... Bh3 {[%clk 0:00:17.9]} 26. c5 {[%clk 0:01:42.4]} 26...
Bxf1 {[%clk 0:00:15.4]} 27. Nxf1 {[%clk 0:01:37.3]} 27... Qe6 {[%clk 0:00:12.1]}
28. Qxe6 {[%clk 0:01:30.8]} 28... fxe6 {[%clk 0:00:14]} 29. Ne3 {[%clk
0:01:30.6]} 29... Nf4 {[%clk 0:00:14.7]} 30. Kf1 {[%clk 0:01:24.8]} 30... Ng6
{[%clk 0:00:06.7]} 31. Ng4 {[%clk 0:01:20.5]} 31... Ne7 {[%clk 0:00:05.2]} 32.
Ne5 {[%clk 0:01:18.5]} 32... Kc8 {[%clk 0:00:06]} 33. Re1 {[%clk 0:00:56.1]}
33... Nf5 {[%clk 0:00:05.1]} 34. Nc6 {[%clk 0:00:50.1]} 34... Rde8 {[%clk
0:00:06.1]} 35. cxb6 {[%clk 0:00:47.4]} 35... cxb6 {[%clk 0:00:04.6]} 36. Nxa7+
{[%clk 0:00:48.7]} 36... Kb8 {[%clk 0:00:05.2]} 37. Nc6+ {[%clk 0:00:49.2]}
37... Kc7 {[%clk 0:00:06.3]} 38. Rec1 {[%clk 0:00:47.7]} 38... Kd6 {[%clk
0:00:07.5]} 39. a7 {[%clk 0:00:47.9]} 39... Ra8 {[%clk 0:00:06.9]} 40. Rab1
{[%clk 0:00:31.4]} 40... Rgf8 {[%clk 0:00:07.2]} 41. Kg2 {[%clk 0:00:30.4]}
41... Ne7 {[%clk 0:00:04]} 42. Rxb6 {[%clk 0:00:27.1]} 42... Nxc6 {[%clk
0:00:03.7]} 43. Rcxc6+ {[%clk 0:00:27.3]} 43... Kd7 {[%clk 0:00:04.8]} 44. Rd6+
{[%clk 0:00:26.9]} 44... Kc7 {[%clk 0:00:05.9]} 45. Rbc6+ {[%clk 0:00:27.5]}
45... Kb7 {[%clk 0:00:07]} 46. Rxe6 {[%clk 0:00:25]} 46... Rxa7 {[%clk 0:00:08]}
47. Rcd6 {[%clk 0:00:24.5]} 47... Ka8 {[%clk 0:00:06.4]} 48. Rf6 {[%clk
0:00:18.8]} 48... Rxf6 {[%clk 0:00:04.5]} 49. Rxf6 {[%clk 0:00:20.7]} 49... Rd7
{[%clk 0:00:05.6]} 50. Rf5 {[%clk 0:00:21.3]} 50... Kb7 {[%clk 0:00:06.8]} 51.
g4 {[%clk 0:00:22.5]} 51... Kc7 {[%clk 0:00:08]} 52. g5 {[%clk 0:00:23.7]} 52...
Kd8 {[%clk 0:00:09.3]} 53. f4 {[%clk 0:00:24.8]} 53... Ke8 {[%clk 0:00:09.8]}
54. Kg3 {[%clk 0:00:25.9]} 54... Ke7 {[%clk 0:00:10.2]} 55. Kg4 {[%clk
0:00:27.1]} 55... Ke6 {[%clk 0:00:11.4]} 56. Rf6+ {[%clk 0:00:26.4]} 56... Ke7
{[%clk 0:00:12.2]} 57. Kf5 {[%clk 0:00:27]} 1

[Event "Torneo Nuevo Centro. Jornada 8"]
[Site "Chess.com"]
[Date "2020.08.07"]
[Round "5"]
[White "Lloret Ramis, Juan José"]
[Black "Beneyto de Ramon, Guillermo"]
[Result "1-0"]
[WhiteElo "1984"]
[BlackElo "1650"]
[TimeControl "180+2"]
[EndTime "11:26:22 PDT"]
[Termination "Victoria de Amiplim por jaque mate"]

1. c4 {[%clk 0:03:01.9]} 1... c5 {[%clk 0:02:58.7]} 2. Nc3 {[%clk 0:03:02]} 2...
Nc6 {[%clk 0:02:59.6]} 3. Nf3 {[%clk 0:03:01.8]} 3... Nf6 {[%clk 0:03:01.2]} 4.
g3 {[%clk 0:03:01.9]} 4... e6 {[%clk 0:03:02.4]} 5. Bg2 {[%clk 0:03:02.4]} 5...
d5 {[%clk 0:03:03.1]} 6. cxd5 {[%clk 0:03:02.7]} 6... exd5 {[%clk 0:03:04.9]} 7.
d4 {[%clk 0:03:03.6]} 7... cxd4 {[%clk 0:03:05.6]} 8. Nxd4 {[%clk 0:03:01.9]}
8... Bb4 {[%clk 0:03:05.5]} 9. O-O {[%clk 0:03:00.6]} 9... O-O {[%clk
0:03:05.6]} 10. Bg5 {[%clk 0:02:47.1]} 10... Bf5 {[%clk 0:03:04.1]} 11. Nxf5
{[%clk 0:02:36.7]} 11... Bxc3 {[%clk 0:03:01]} 12. bxc3 {[%clk 0:02:35.2]} 12...
h6 {[%clk 0:02:57.8]} 13. Bf4 {[%clk 0:02:20]} 13... Qd7 {[%clk 0:02:54.1]} 14.
Nd4 {[%clk 0:02:17.7]} 14... Nxd4 {[%clk 0:02:54.4]} 15. cxd4 {[%clk 0:02:14.9]}
15... Rfe8 {[%clk 0:02:54.7]} 16. Re1 {[%clk 0:02:04.3]} 16... Ne4 {[%clk
0:02:53.5]} 17. Qb3 {[%clk 0:01:59.1]} 17... b6 {[%clk 0:02:49.4]} 18. Bxe4
{[%clk 0:01:58.2]} 18... Rxe4 {[%clk 0:02:49.4]} 19. Be3 {[%clk 0:01:42.7]}
19... Rae8 {[%clk 0:02:47]} 20. Rac1 {[%clk 0:01:39.1]} 20... Qf5 {[%clk
0:02:42.6]} 21. Rc3 {[%clk 0:01:25.3]} 21... Qe6 {[%clk 0:02:41.6]} 22. Rec1
{[%clk 0:01:14.6]} 22... Qf6 {[%clk 0:02:34.7]} 23. Qxd5 {[%clk 0:01:09.5]}
23... R4e7 {[%clk 0:02:27.1]} 24. Rc8 {[%clk 0:01:06.6]} 24... Kh7 {[%clk
0:02:24.4]} 25. Rxe8 {[%clk 0:01:04.8]} 25... Rxe8 {[%clk 0:02:26.3]} 26. Qf3
{[%clk 0:01:05]} 26... Qe6 {[%clk 0:02:21.6]} 27. d5 {[%clk 0:01:02.1]} 27...
Qg6 {[%clk 0:02:21]} 28. Rd1 {[%clk 0:00:56.4]} 28... Rd8 {[%clk 0:02:20.3]} 29.
Bf4 {[%clk 0:00:53.4]} 29... Kg8 {[%clk 0:02:16.8]} 30. e4 {[%clk 0:00:49.7]}
30... Qf6 {[%clk 0:02:12.3]} 31. e5 {[%clk 0:00:47.5]} 31... Qf5 {[%clk
0:02:09.5]} 32. Qd3 {[%clk 0:00:44.4]} 32... Qg4 {[%clk 0:02:05.2]} 33. f3
{[%clk 0:00:38.3]} 33... Qh5 {[%clk 0:02:03.2]} 34. d6 {[%clk 0:00:36.3]} 34...
g5 {[%clk 0:02:02.5]} 35. Bc1 {[%clk 0:00:32.1]} 35... g4 {[%clk 0:02:02.8]} 36.
f4 {[%clk 0:00:29.7]} 36... f6 {[%clk 0:01:55.1]} 37. Bb2 {[%clk 0:00:29.2]}
37... fxe5 {[%clk 0:01:55.3]} 38. Bxe5 {[%clk 0:00:28.6]} 38... Qf7 {[%clk
0:01:55.6]} 39. Qd5 {[%clk 0:00:29.1]} 39... Qxd5 {[%clk 0:01:52.5]} 40. Rxd5
{[%clk 0:00:29.9]} 40... Kf7 {[%clk 0:01:54.3]} 41. f5 {[%clk 0:00:28.7]} 41...
Rd7 {[%clk 0:01:52.5]} 42. Kf2 {[%clk 0:00:28.6]} 42... h5 {[%clk 0:01:53.2]}
43. Ke3 {[%clk 0:00:29.5]} 43... Ke8 {[%clk 0:01:50.5]} 44. Kf4 {[%clk
0:00:28.6]} 44... Rb7 {[%clk 0:01:43.8]} 45. a4 {[%clk 0:00:26.4]} 45... Kd7
{[%clk 0:01:44.6]} 46. Kg5 {[%clk 0:00:24.2]} 46... Rb8 {[%clk 0:01:41.3]} 47.
Kxh5 {[%clk 0:00:22.7]} 47... Re8 {[%clk 0:01:42]} 48. Kxg4 {[%clk 0:00:22.5]}
48... Kc6 {[%clk 0:01:43.2]} 49. d7 {[%clk 0:00:17.9]} 49... Rd8 {[%clk
0:01:44.4]} 50. Rd2 {[%clk 0:00:18.5]} 50... a6 {[%clk 0:01:39.4]} 51. f6 {[%clk
0:00:19.3]} 51... Rxd7 {[%clk 0:01:31.5]} 52. Rxd7 {[%clk 0:00:19.5]} 52... Kxd7
{[%clk 0:01:33.4]} 53. Kf5 {[%clk 0:00:20.7]} 53... Ke8 {[%clk 0:01:34.1]} 54.
Kg6 {[%clk 0:00:21.9]} 54... Kf8 {[%clk 0:01:35]} 55. Bd6+ {[%clk 0:00:22.7]}
55... Ke8 {[%clk 0:01:35.3]} 56. f7+ {[%clk 0:00:23.4]} 56... Kd7 {[%clk
0:01:36.9]} 57. f8=Q {[%clk 0:00:24.3]} 57... b5 {[%clk 0:01:36.7]} 58. Qe7+
{[%clk 0:00:25]} 58... Kc6 {[%clk 0:01:38.3]} 59. axb5+ {[%clk 0:00:25.8]} 59...
axb5 {[%clk 0:01:39.4]} 60. Qc7+ {[%clk 0:00:26.7]} 60... Kd5 {[%clk 0:01:40.5]}
61. Kf5 {[%clk 0:00:25.5]} 61... Kd4 {[%clk 0:01:40.4]} 62. Qc5+ {[%clk
0:00:25.1]} 62... Kd3 {[%clk 0:01:38.4]} 63. Qb4 {[%clk 0:00:24.9]} 63... Kc2
{[%clk 0:01:35]} 64. Qxb5 {[%clk 0:00:24.7]} 64... Kc3 {[%clk 0:01:34]} 65. Qa4
{[%clk 0:00:25.2]} 65... Kd3 {[%clk 0:01:33.4]} 66. Qb4 {[%clk 0:00:26]} 66...
Ke3 {[%clk 0:01:34]} 67. Qc4 {[%clk 0:00:27.1]} 67... Kf2 {[%clk 0:01:35.5]} 68.
Qd3 {[%clk 0:00:27.9]} 68... Kg1 {[%clk 0:01:36.1]} 69. Qe2 {[%clk 0:00:27.9]}
69... Kh1 {[%clk 0:01:36.9]} 70. g4 {[%clk 0:00:27.2]} 70... Kg1 {[%clk
0:01:36.9]} 71. h4 {[%clk 0:00:28.2]} 71... Kh1 {[%clk 0:01:38.1]} 72. Kf4
{[%clk 0:00:29.4]} 72... Kg1 {[%clk 0:01:37.3]} 73. Kg3 {[%clk 0:00:29.5]} 73...
Kh1 {[%clk 0:01:39.2]} 74. Qe1# {[%clk 0:00:30.1]} 1

[Event "Torneo Nuevo Centro. Jornada 8"]
[Site "Chess.com"]
[Date "2020.08.07"]
[Round "6"]
[White "Rabbani Perez, Oumaima "]
[Black "Grigorev, Artur "]
[Result "0-1"]
[WhiteElo "614"]
[BlackElo "968"]
[TimeControl "180+2"]
[EndTime "11:31:37 PDT"]
[Termination "Victoria de Arturiog por jaque mate"]

1. e3 {[%clk 0:03:01.9]} 1... d5 {[%clk 0:02:58.4]} 2. Bb5+ {[%clk 0:02:57.7]}
2... Bd7 {[%clk 0:02:52.5]} 3. Qg4 {[%clk 0:02:49.7]} 3... c6 {[%clk 0:02:43.7]}
4. Qa4 {[%clk 0:02:43.2]} 4... cxb5 {[%clk 0:02:42.5]} 5. Qd4 {[%clk 0:02:39.1]}
5... Bc6 {[%clk 0:02:34.9]} 6. Nf3 {[%clk 0:02:33.2]} 6... Nd7 {[%clk
0:02:30.7]} 7. Qf4 {[%clk 0:02:32.4]} 7... Ngf6 {[%clk 0:02:27]} 8. Ng5 {[%clk
0:02:32.9]} 8... e5 {[%clk 0:02:24]} 9. Qf5 {[%clk 0:02:29.2]} 9... Bc5 {[%clk
0:02:16.8]} 10. Qxe5+ {[%clk 0:02:28.6]} 10... Nxe5 {[%clk 0:02:08.5]} 11. Nc3
{[%clk 0:02:21.1]} 11... Nfg4 {[%clk 0:02:02.9]} 12. O-O {[%clk 0:02:19.4]}
12... Qxg5 {[%clk 0:02:00.3]} 13. f4 {[%clk 0:02:16.5]} 13... Qh5 {[%clk
0:01:57]} 14. fxe5 {[%clk 0:02:14.9]} 14... Qxh2# {[%clk 0:01:47.9]} 0

[Event "Torneo Nuevo Centro. Jornada 8"]
[Site "Chess.com"]
[Date "2020.08.07"]
[Round "6"]
[White "Perrot, Fabien "]
[Black "Vicent Lázaro, Elena"]
[Result "1-0"]
[WhiteElo "1017"]
[BlackElo "667"]
[TimeControl "180+2"]
[EndTime "11:32:02 PDT"]
[Termination "Victoria de InspiredMinds por abandono"]

1. d4 {[%clk 0:03:00.5]} 1... e6 {[%clk 0:02:50.4]} 2. e4 {[%clk 0:02:56.4]}
2... c5 {[%clk 0:02:48.5]} 3. c3 {[%clk 0:02:53.7]} 3... Nc6 {[%clk 0:02:46.6]}
4. Nf3 {[%clk 0:02:47.1]} 4... Nf6 {[%clk 0:02:45.1]} 5. Bg5 {[%clk 0:02:47.2]}
5... Bd6 {[%clk 0:02:45]} 6. e5 {[%clk 0:02:43.1]} 6... Bb8 {[%clk 0:02:42.5]}
7. exf6 {[%clk 0:02:27.1]} 7... gxf6 {[%clk 0:02:44.4]} 8. Bh4 {[%clk
0:02:16.6]} 8... O-O {[%clk 0:02:38.5]} 9. Bd3 {[%clk 0:02:03.8]} 9... e5 {[%clk
0:02:29.8]} 10. dxe5 {[%clk 0:01:50.5]} 10... Nxe5 {[%clk 0:02:25.6]} 11. Nxe5
{[%clk 0:01:48.3]} 11... fxe5 {[%clk 0:02:26]} 12. Bxd8 {[%clk 0:01:48.6]} 12...
e4 {[%clk 0:02:23.6]} 13. Bxe4 {[%clk 0:01:45.2]} 13... Rxd8 {[%clk 0:02:23.5]}
14. Qh5 {[%clk 0:01:44.9]} 14... Re8 {[%clk 0:02:12.8]} 1

[Event "Torneo Nuevo Centro. Jornada 8"]
[Site "Chess.com"]
[Date "2020.08.07"]
[Round "6"]
[White "Casado Andreu, David"]
[Black "Lloret Ramis, Juan José"]
[Result "0-1"]
[WhiteElo "1755"]
[BlackElo "1987"]
[TimeControl "180+2"]
[EndTime "11:32:04 PDT"]
[Termination "Victoria de Amiplim por abandono"]

1. e4 {[%clk 0:03:01.9]} 1... e6 {[%clk 0:02:59.7]} 2. d4 {[%clk 0:03:02.4]}
2... d5 {[%clk 0:03:00.4]} 3. e5 {[%clk 0:03:03.4]} 3... c5 {[%clk 0:03:00.4]}
4. c3 {[%clk 0:03:05.3]} 4... Nc6 {[%clk 0:03:00.9]} 5. Nf3 {[%clk 0:03:06.8]}
5... Bd7 {[%clk 0:03:01.7]} 6. a3 {[%clk 0:03:06.6]} 6... f6 {[%clk 0:03:01.3]}
7. exf6 {[%clk 0:03:06.7]} 7... Nxf6 {[%clk 0:03:01.6]} 8. Bd3 {[%clk 0:03:06]}
8... Bd6 {[%clk 0:03:02.3]} 9. O-O {[%clk 0:03:06.1]} 9... O-O {[%clk
0:03:02.3]} 10. b4 {[%clk 0:03:05]} 10... cxd4 {[%clk 0:02:59.9]} 11. cxd4
{[%clk 0:03:06.9]} 11... Qc7 {[%clk 0:02:53.3]} 12. Be3 {[%clk 0:03:04.3]} 12...
e5 {[%clk 0:02:23.3]} 13. dxe5 {[%clk 0:03:03.2]} 13... Nxe5 {[%clk 0:02:24.2]}
14. Nxe5 {[%clk 0:02:54.6]} 14... Bxe5 {[%clk 0:02:25]} 15. Ra2 {[%clk
0:02:56.3]} 15... Bxh2+ {[%clk 0:02:24.6]} 16. Kh1 {[%clk 0:02:57.8]} 16... Bd6
{[%clk 0:01:49.6]} 17. Rd2 {[%clk 0:02:43.8]} 17... Rae8 {[%clk 0:01:42.2]} 18.
Qf3 {[%clk 0:02:38.3]} 18... Bg4 {[%clk 0:01:15.8]} 0

[Event "Torneo Nuevo Centro. Jornada 8"]
[Site "Chess.com"]
[Date "2020.08.07"]
[Round "6"]
[White "Fitzpatrick Dimas, Kevin"]
[Black "Hernández Tomás, Efrén"]
[Result "0-1"]
[WhiteElo "890"]
[BlackElo "1078"]
[TimeControl "180+2"]
[EndTime "11:33:39 PDT"]
[Termination "Victoria de EfrenHT10 por abandono"]

1. e4 {[%clk 0:03:01.9]} 1... e5 {[%clk 0:03:00.9]} 2. Bc4 {[%clk 0:03:00.8]}
2... Nf6 {[%clk 0:03:01.9]} 3. Nc3 {[%clk 0:02:59.8]} 3... Bc5 {[%clk
0:03:02.1]} 4. d3 {[%clk 0:02:56.8]} 4... c6 {[%clk 0:03:00.3]} 5. a3 {[%clk
0:02:55.5]} 5... d5 {[%clk 0:02:57]} 6. exd5 {[%clk 0:02:54.3]} 6... cxd5 {[%clk
0:02:55.5]} 7. Bb5+ {[%clk 0:02:54.2]} 7... Bd7 {[%clk 0:02:53.7]} 8. Bxd7+
{[%clk 0:02:54.6]} 8... Qxd7 {[%clk 0:02:54.6]} 9. Nf3 {[%clk 0:02:49.9]} 9...
e4 {[%clk 0:02:52.4]} 10. dxe4 {[%clk 0:02:49.7]} 10... Nxe4 {[%clk 0:02:50.2]}
11. Be3 {[%clk 0:02:41.3]} 11... Bxe3 {[%clk 0:02:50.1]} 12. fxe3 {[%clk
0:02:41.8]} 12... Nxc3 {[%clk 0:02:49.5]} 13. bxc3 {[%clk 0:02:41.2]} 13... Qc6
{[%clk 0:02:48.4]} 14. Qd2 {[%clk 0:02:28.3]} 14... O-O {[%clk 0:02:45.1]} 15.
Ne5 {[%clk 0:02:25.8]} 15... Qe6 {[%clk 0:02:43.9]} 16. Qd4 {[%clk 0:02:23.4]}
16... f6 {[%clk 0:02:43.4]} 17. Nd3 {[%clk 0:02:09.4]} 17... Re8 {[%clk
0:02:42.1]} 18. O-O {[%clk 0:02:04]} 18... Qxe3+ {[%clk 0:02:40.8]} 19. Qxe3
{[%clk 0:01:59.5]} 19... Rxe3 {[%clk 0:02:40.5]} 20. Nc5 {[%clk 0:01:58.4]}
20... Rxc3 {[%clk 0:02:36.2]} 21. Ne6 {[%clk 0:01:57.9]} 21... Rxc2 {[%clk
0:02:30.5]} 22. Rfe1 {[%clk 0:01:44]} 22... Nc6 {[%clk 0:02:28.6]} 23. Nc7
{[%clk 0:01:39]} 23... Rc8 {[%clk 0:02:28.1]} 24. Nxd5 {[%clk 0:01:36.1]} 24...
Rd8 {[%clk 0:02:26]} 25. Rad1 {[%clk 0:01:32.5]} 25... Ra2 {[%clk 0:02:21.7]}
26. Re3 {[%clk 0:01:25.7]} 26... Rc2 {[%clk 0:02:09.1]} 27. Rg3 {[%clk
0:01:25.4]} 27... Rc5 {[%clk 0:02:08.4]} 28. Nxf6+ {[%clk 0:01:25.9]} 28... Kf7
{[%clk 0:02:07.1]} 29. Rf1 {[%clk 0:01:24.2]} 29... gxf6 {[%clk 0:02:06.8]} 30.
Rgf3 {[%clk 0:01:22.5]} 30... Rd6 {[%clk 0:02:05.4]} 31. g4 {[%clk 0:01:18.8]}
31... Nd4 {[%clk 0:02:05.6]} 32. Rf4 {[%clk 0:01:17.6]} 32... Ne2+ {[%clk
0:02:06.3]} 33. Kg2 {[%clk 0:01:16.1]} 33... Nxf4+ {[%clk 0:02:06.7]} 0